bitfinex/quotes_BTCUSD_20241011
["timestamp","ask_amount","ask_price","bid_price","bid_amount"]
[1728660954871,0.32242301,62035.0,62034.0,0.00082]
[1728660955561,0.32742301,62035.0,62034.0,0.00082]
[1728660957008,0.51492879,62035.0,62034.0,0.00082]
[1728660957673,0.56313744,62035.0,62034.0,0.00082]
[1728660957950,0.56313438,62035.0,62034.0,0.00082]
[1728660958170,0.51492879,62035.0,62034.0,0.00082]
[1728660958399,0.58724177,62035.0,62034.0,0.00082]
[1728660958614,0.6762985,62035.0,62034.0,0.00082]
[1728660959512,0.72448065,62035.0,62034.0,0.00082]
[1728660961521,0.6762985,62035.0,62034.0,0.00082]
[1728660961758,0.51492879,62035.0,62034.0,0.00082]
[1728660961976,0.43622879,62035.0,62034.0,0.00082]
[1728660962189,0.46132523,62035.0,62034.0,0.00082]
[1728660962409,0.46132444,62035.0,62034.0,0.00082]
[1728660962627,0.17502979,62035.0,62034.0,0.00082]
[1728660963115,0.17502979,62035.0,62034.0,0.016887]
[1728660963340,0.17502979,62035.0,62034.0,0.00082]
[1728660963845,0.17502979,62035.0,62034.0,0.016887]
[1728660964072,0.17022401,62035.0,62034.0,0.016067]
[1728660964306,0.009,62035.0,62034.0,0.016067]
[1728660964534,0.009,62035.0,62034.0,0.01338917]
[1728660964754,0.009,62035.0,62034.0,0.17781378]
[1728660964978,0.009,62035.0,62034.0,0.51998042]
[1728660965195,0.009,62035.0,62034.0,0.59585681]
[1728660965426,0.009,62035.0,62034.0,0.78201462]
[1728660965887,0.004,62035.0,62034.0,0.78401462]
[1728660966320,0.005,62035.0,62034.0,0.78201462]
[1728660966529,0.001,62035.0,62034.0,0.78201462]
[1728660966784,0.2424262,62047.0,62045.0,0.161172]
[1728660967026,0.2424262,62047.0,62046.0,0.18876664]
[1728660967243,0.25747889,62047.0,62046.0,0.19981476]
[1728660967463,0.01505269,62047.0,62046.0,0.36098476]
[1728660967686,0.01505269,62047.0,62046.0,0.19981476]
[1728660967908,0.01505269,62047.0,62046.0,0.36098476]
[1728660968621,0.2440662,62057.0,62047.0,0.161168]
[1728660969087,0.2440662,62057.0,62047.0,0.17215323]
[1728660969786,0.2440662,62057.0,62047.0,0.01098523]
[1728660969787,0.16440527,62048.0,62047.0,0.01098523]
[1728660970020,0.16440527,62048.0,62045.0,0.001]
[1728660970021,0.16597578,62046.0,62045.0,0.001]
[1728660970242,0.161191,62038.0,62037.0,0.2424262]
[1728660970457,0.33746128,62038.0,62037.0,0.2424262]
[1728660970692,0.27449101,62038.0,62028.0,0.15932]
[1728660970903,0.161206,62033.0,62028.0,0.00082]
[1728660971115,0.17625327,62032.0,62028.0,0.00082]
[1728660971343,0.17627028,62031.0,62028.0,0.00082]
[1728660971562,0.01505211,62030.0,62029.0,0.011104]
[1728660973072,0.01705211,62030.0,62029.0,0.011104]
[1728660973816,0.002,62030.0,62028.0,0.00082]
[1728660974036,0.01505161,62029.0,62028.0,0.00082]
[1728660974258,0.4415376,62029.0,62028.0,0.00082]
[1728660974468,0.4415376,62029.0,62028.0,0.01193112]
[1728660974688,0.4415376,62029.0,62028.0,0.00082]
[1728660974903,0.46562317,62029.0,62028.0,0.00082]
[1728660975122,0.30440917,62029.0,62028.0,0.00082]
[1728660975339,0.30440917,62029.0,62028.0,0.00182]
[1728660975560,0.46562317,62029.0,62028.0,0.00182]
[1728660975779,0.20036119,62029.0,62028.0,0.00182]
[1728660975990,0.36157519,62029.0,62028.0,0.01293112]
[1728660976210,0.20036119,62029.0,62028.0,0.00182]
[1728660976441,0.17627562,62029.0,62028.0,0.00182]
[1728660976665,0.17727562,62029.0,62028.0,0.01347745]
[1728660976899,0.17727562,62029.0,62028.0,0.00182]
[1728660977131,0.33848962,62029.0,62028.0,0.01347745]
[1728660977362,0.35669776,62029.0,62028.0,0.00182]
[1728660977580,0.2013582,62029.0,62028.0,0.00182]
[1728660978001,0.17727562,62029.0,62028.0,0.01351747]
[1728660978244,0.17727526,62029.0,62028.0,0.01351747]
[1728660979494,0.01605125,62029.0,62028.0,0.17473447]
[1728660980406,0.01605125,62029.0,62028.0,0.01351747]
[1728660980628,0.01605125,62029.0,62028.0,0.17473447]
[1728660980866,0.01605125,62029.0,62028.0,0.01351747]
[1728660982255,0.01605125,62029.0,62028.0,0.17473447]
[1728660982523,0.001,62029.0,62028.0,0.25825846]
[1728660982963,0.001,62029.0,62028.0,0.25503447]
[1728660983181,0.01605661,62029.0,62028.0,0.09704142]
[1728660983397,0.01605661,62029.0,62028.0,0.25825844]
[1728660984067,0.01605661,62029.0,62028.0,0.17795844]
[1728660986050,0.001,62029.0,62028.0,0.17795844]
[1728660986327,0.001,62029.0,62028.0,0.17795843]
[1728660986557,0.001,62029.0,62028.0,0.42225265]
[1728660986770,0.001,62029.0,62028.0,0.41902869]
[1728660987220,0.001,62029.0,62028.0,0.31634149]
[1728660987475,0.2424262,62041.0,62040.0,0.44214104]
[1728660987693,0.00480578,62039.0,62028.0,0.01157732]
[1728660987911,0.00164,62035.0,62029.0,0.2424262]
[1728660988160,0.1762786,62034.0,62029.0,0.2424262]
[1728660988388,0.1762786,62034.0,62028.0,0.163037]
[1728660988389,0.01505459,62033.0,62028.0,0.162037]
[1728660988609,0.001,62029.0,62028.0,0.163037]
[1728660988941,0.001,62029.0,62028.0,0.166261]
[1728660989033,0.16122401,62034.0,62028.0,0.166261]
[1728660989034,0.16122401,62034.0,62030.0,0.16121]
[1728660989261,0.00164,62035.0,62028.0,0.324252]
[1728660989527,0.16286401,62035.0,62030.0,0.322422]
[1728660989755,0.16286401,62035.0,62032.0,0.161206]
[1728660989974,0.01506111,62034.0,62031.0,0.161208]
[1728660990209,0.16286401,62035.0,62028.0,0.00182]
[1728660990210,0.5648402,62032.0,62028.0,0.00182]
[1728660990438,0.17921652,62033.0,62028.0,0.00082]
[1728660990439,0.16601978,62029.0,62028.0,0.00082]
[1728660990662,0.36641438,62029.0,62028.0,0.00082]
[1728660990882,0.36741438,62029.0,62028.0,0.00382]
[1728660991104,0.52878409,62029.0,62028.0,0.00282]
[1728660991326,0.52778409,62029.0,62028.0,0.00082]
[1728660991779,0.53178409,62029.0,62028.0,0.00082]
[1728660992206,0.38241438,62029.0,62028.0,0.00082]
[1728660992425,0.39641438,62029.0,62028.0,0.00082]
[1728660994481,0.3916086,62029.0,62028.0,0.00082]
[1728660994719,0.20428962,62029.0,62028.0,0.00082]
[1728660994957,0.20428962,62029.0,62028.0,0.19888188]
[1728660994958,0.04306561,62029.0,62028.0,0.19888188]
[1728660995191,0.04306561,62029.0,62028.0,0.00082]
[1728660995408,0.02906561,62029.0,62028.0,0.00082]
[1728660995640,0.01506561,62029.0,62028.0,0.00905925]
[1728660995857,0.02006561,62029.0,62028.0,0.00082]
[1728660996050,0.07241435,62029.0,62028.0,0.00905925]
[1728660996272,0.04616561,62029.0,62028.0,0.00082]
[1728660996503,0.02006561,62029.0,62028.0,0.00905895]
[1728660996721,0.02006561,62029.0,62028.0,0.00082]
[1728660996960,0.02406561,62029.0,62028.0,0.00905895]
[1728660997190,0.01506561,62029.0,62028.0,0.00905895]
[1728660997418,0.01806561,62029.0,62028.0,0.00905895]
[1728660997642,0.02106561,62029.0,62028.0,0.00905895]
[1728660997887,0.01806561,62029.0,62028.0,0.00905895]
[1728660998331,0.03917165,62029.0,62028.0,0.00905895]
[1728660998777,0.01607093,62029.0,62028.0,0.00905895]
[1728660999005,0.04018442,62029.0,62028.0,0.00905895]
[1728660999478,0.01771093,62029.0,62028.0,0.00905895]
[1728660999689,0.01771093,62029.0,62028.0,0.17027595]
[1728660999903,0.01771093,62029.0,62028.0,0.36012495]
[1728661000121,0.00164,62029.0,62028.0,0.36012495]
[1728661000352,0.01672149,62029.0,62028.0,0.17027595]
[1728661000780,0.01672149,62029.0,62028.0,0.17127595]
[1728661001211,0.01672149,62029.0,62028.0,0.17227595]
[1728661001431,0.01872149,62029.0,62028.0,0.17327595]
[1728661001669,0.01872149,62029.0,62028.0,0.17649979]
[1728661001917,0.00364,62029.0,62028.0,0.17649979]
[1728661002144,0.00364,62029.0,62028.0,0.17649969]
[1728661002584,0.00364,62029.0,62028.0,0.17327595]
[1728661003351,0.00364,62029.0,62028.0,0.33469418]
[1728661004010,0.00264,62029.0,62028.0,0.33269418]
[1728661004514,0.00264,62029.0,62028.0,0.33369418]
[1728661004725,0.00364,62029.0,62028.0,0.33469418]
[1728661004936,0.00164,62029.0,62028.0,0.33169418]
[1728661005184,0.00264,62029.0,62028.0,0.33369418]
[1728661005426,0.00264,62029.0,62028.0,0.17327595]
[1728661005427,0.00364,62029.0,62028.0,0.17327595]
[1728661006952,0.00264,62029.0,62028.0,0.17127595]
[1728661007185,0.00164,62029.0,62028.0,0.17727595]
[1728661007429,0.00364,62029.0,62028.0,0.18627595]
[1728661007661,0.00164,62029.0,62028.0,0.17027595]
[1728661007923,0.00164,62029.0,62028.0,0.17327595]
[1728661008169,0.00164,62029.0,62028.0,0.17527595]
[1728661008931,0.00164,62029.0,62028.0,0.17027595]
[1728661010169,0.00364,62029.0,62028.0,0.18347017]
[1728661010634,0.00164,62029.0,62028.0,0.17369384]
[1728661010905,0.00164,62029.0,62028.0,0.42701785]
[1728661010906,0.00264,62029.0,62028.0,0.42701785]
[1728661011128,0.00264,62029.0,62028.0,0.62239183]
[1728661011353,0.00264,62029.0,62028.0,0.61739183]
[1728661011572,0.00164,62029.0,62028.0,0.61139183]
[1728661011813,0.00264,62029.0,62028.0,0.61939183]
[1728661012037,0.00364,62029.0,62028.0,0.62839183]
[1728661012494,0.00364,62029.0,62028.0,0.60539183]
[1728661013425,0.00264,62029.0,62028.0,0.59639183]
[1728661013650,0.00264,62029.0,62028.0,0.59739183]
[1728661013886,0.00364,62029.0,62028.0,0.60539183]
[1728661014111,0.00364,62029.0,62028.0,0.20206782]
[1728661014327,0.00164,62029.0,62028.0,0.18506782]
[1728661014796,0.00364,62029.0,62028.0,0.19063465]
[1728661015003,0.00264,62029.0,62028.0,0.18363465]
[1728661015676,0.00264,62029.0,62028.0,0.169037]
[1728661016113,0.00164,62029.0,62028.0,0.162037]
[1728661016334,0.00164,62029.0,62028.0,0.165037]
[1728661016560,0.00164,62029.0,62028.0,0.169037]
[1728661016774,0.00164,62029.0,62028.0,0.16223122]
[1728661017203,0.00264,62029.0,62028.0,0.17323122]
[1728661018301,0.00264,62029.0,62028.0,0.3606789]
[1728661018562,0.00264,62029.0,62028.0,0.52355523]
[1728661022761,0.00264,62029.0,62028.0,0.62355523]
[1728661022969,0.00264,62029.0,62028.0,0.67139302]
[1728661023381,0.00264,62029.0,62028.0,0.85998143]
[1728661023382,0.00164,62029.0,62028.0,0.85998143]
[1728661023608,0.00164,62029.0,62028.0,0.92774202]
[1728661023831,0.00264,62029.0,62028.0,0.74689302]
[1728661024050,0.00164,62029.0,62028.0,0.92774202]
[1728661024289,0.00164,62035.0,62034.0,0.16139522]
[1728661024517,0.00164,62035.0,62034.0,0.98434042]
[1728661024759,0.00318126,62048.0,62047.0,0.161168]
[1728661024994,0.00318126,62048.0,62047.0,0.35121122]
[1728661026795,0.00418126,62048.0,62047.0,0.36021122]
[1728661027024,0.00518126,62048.0,62047.0,0.36721122]
[1728661028418,0.00518126,62048.0,62047.0,0.38185263]
[1728661028617,0.00518126,62048.0,62047.0,0.38152755]
[1728661029104,0.00518126,62048.0,62047.0,1.30702676]
[1728661029322,0.00164,62057.0,62056.0,0.350993]
[1728661029543,0.00164,62057.0,62056.0,0.161144]
[1728661031090,0.00164,62057.0,62056.0,0.16333822]
[1728661032210,0.00164,62057.0,62056.0,0.16433822]
[1728661032429,0.00164,62057.0,62056.0,0.17875911]
[1728661038112,0.00164,62057.0,62056.0,0.18198135]
[1728661038768,0.00164,62057.0,62056.0,0.17875911]
[1728661039207,0.00164,62057.0,62056.0,0.18198135]
[1728661039862,0.00164,62057.0,62056.0,0.17875911]
[1728661040513,0.00164,62057.0,62056.0,0.16433822]
[1728661040518,0.00164,62057.0,62056.0,0.003]
[1728661040519,0.07784,62057.0,62056.0,0.003]
[1728661040964,0.07984,62057.0,62056.0,0.003]
[1728661041858,0.07784,62057.0,62056.0,0.003]
[1728661042297,0.07784,62057.0,62054.0,0.350997]
[1728661042515,0.08184,62057.0,62054.0,0.350997]
[1728661042729,0.08484,62057.0,62054.0,0.350997]
[1728661042949,0.08084,62057.0,62054.0,0.350997]
[1728661043165,0.08084,62057.0,62056.0,0.161144]
[1728661043166,0.07784,62057.0,62056.0,0.161144]
[1728661043386,0.00164,62057.0,62056.0,0.166144]
[1728661043848,0.00164,62057.0,62056.0,0.161144]
[1728661045351,0.00164,62057.0,62056.0,0.17534987]
[1728661045605,0.00164,62057.0,62056.0,0.18457206]
[1728661045838,0.00164,62057.0,62056.0,0.19076628]
[1728661046063,0.2424262,62074.0,62065.0,0.161121]
[1728661046064,0.2424262,62066.0,62065.0,0.161121]
[1728661046292,0.2424262,62066.0,62065.0,0.35097]
[1728661046517,0.2424262,62074.0,62072.0,0.161102]
[1728661046735,0.2424262,62074.0,62073.0,0.189849]
[1728661047021,0.1612,62078.0,62073.0,0.512048]
[1728661047241,0.1612,62078.0,62077.0,0.189849]
[1728661047480,0.17623858,62078.0,62077.0,0.350939]
[1728661047744,0.17623858,62078.0,62077.0,0.189849]
[1728661048202,0.08284578,62080.0,62077.0,0.189849]
[1728661048203,0.00164,62080.0,62079.0,0.161085]
[1728661048436,0.00164,62080.0,62079.0,0.16127922]
[1728661049625,0.00164,62080.0,62079.0,0.32572416]
[1728661049868,0.2424262,62095.0,62091.0,0.161053]
[1728661051027,0.001638,62097.0,62091.0,0.161053]
[1728661051251,0.001638,62097.0,62091.0,0.162053]
[1728661051482,0.001638,62097.0,62091.0,0.35512244]
[1728661051753,0.001638,62097.0,62091.0,0.16224722]
[1728661052402,0.001638,62097.0,62091.0,0.16324722]
[1728661054193,0.003638,62097.0,62091.0,0.16324722]
[1728661054421,0.001638,62097.0,62091.0,0.163053]
[1728661054676,0.001638,62097.0,62091.0,0.16324722]
[1728661056690,0.003638,62097.0,62091.0,0.163053]
[1728661057835,0.001638,62097.0,62091.0,0.163053]
[1728661058052,0.001638,62097.0,62091.0,0.162053]
[1728661058277,0.001638,62097.0,62091.0,0.3541225]
[1728661058491,0.001638,62097.0,62091.0,0.173053]
[1728661058700,0.001638,62097.0,62091.0,0.16927345]
[1728661059105,0.001638,62097.0,62091.0,0.16427345]
[1728661059336,0.001638,62097.0,62091.0,0.16546767]
[1728661060010,0.001638,62097.0,62091.0,0.16946767]
[1728661060231,0.001638,62097.0,62091.0,0.16546767]
[1728661060684,0.001638,62097.0,62091.0,0.16646767]
[1728661060937,0.001638,62097.0,62091.0,0.16627345]
[1728661061603,0.001638,62097.0,62091.0,0.163053]
[1728661061827,0.002,62095.0,62091.0,0.163053]
[1728661062071,0.1641,62094.0,62085.0,0.189849]
[1728661062332,0.09138955,62091.0,62086.0,0.161064]
[1728661062547,0.01498955,62090.0,62086.0,0.322129]
[1728661062761,0.01498955,62089.0,62088.0,0.161061]
[1728661064242,0.01498955,62089.0,62088.0,0.169061]
[1728661064476,0.08420578,62096.0,62091.0,0.161053]
[1728661064709,0.0794,62096.0,62091.0,0.35412286]
[1728661064945,0.0794,62096.0,62091.0,0.350902]
[1728661066424,0.001638,62097.0,62091.0,0.350902]
[1728661066644,0.001638,62097.0,62091.0,0.540751]
[1728661066860,0.001638,62097.0,62091.0,0.541751]
[1728661067093,0.001638,62097.0,62091.0,0.352902]
[1728661071128,0.002,62095.0,62091.0,0.352902]
[1728661071694,0.157238,62097.0,62091.0,0.352902]
[1728661071896,0.155238,62097.0,62091.0,0.351902]
[1728661072094,0.155238,62097.0,62091.0,0.355902]
[1728661072320,0.01666225,62092.0,62091.0,0.355902]
[1728661072550,0.01666225,62092.0,62091.0,0.351902]
[1728661072754,0.01666225,62092.0,62091.0,0.350902]
[1728661072960,0.01666225,62092.0,62091.0,0.364902]
[1728661076823,0.01671114,62092.0,62091.0,0.364902]
[1728661077054,0.04082825,62092.0,62091.0,0.014]
[1728661077286,0.12242825,62092.0,62091.0,0.014]
[1728661077505,0.12442825,62092.0,62091.0,0.014]
[1728661078390,0.12242825,62092.0,62091.0,0.014]
[1728661079061,0.12242825,62092.0,62091.0,0.175053]
[1728661079911,0.1222339,62092.0,62091.0,0.175871]
[1728661080146,0.08304365,62092.0,62091.0,0.1790919]
[1728661080363,0.02558733,62092.0,62091.0,0.175871]
[1728661080577,0.04067713,62092.0,62091.0,0.175871]
[1728661081239,0.01653345,62092.0,62091.0,0.175871]
[1728661082338,0.01653345,62092.0,62091.0,0.41578742]
[1728661082339,0.00144365,62092.0,62091.0,0.41578742]
[1728661084372,0.00144365,62092.0,62091.0,0.40778742]
[1728661084579,0.00144365,62092.0,62091.0,0.40178742]
[1728661084800,0.00144365,62092.0,62091.0,0.41278742]
[1728661085439,0.00144365,62092.0,62091.0,0.40178742]
[1728661085894,0.00144365,62092.0,62091.0,0.40878742]
[1728661086132,0.00144365,62092.0,62091.0,0.4085932]
[1728661086387,0.01652389,62092.0,62091.0,0.007818]
[1728661086619,0.04265399,62092.0,62091.0,0.36472]
[1728661086854,0.04065399,62092.0,62091.0,0.36472]
[1728661087083,0.01652389,62092.0,62091.0,0.36472]
[1728661087539,0.01652389,62092.0,62091.0,0.35172]
[1728661087774,0.01652389,62092.0,62091.0,0.35272]
[1728661088200,0.01652389,62092.0,62091.0,0.35172]
[1728661088421,0.01652389,62092.0,62091.0,0.190667]
[1728661088635,0.04265555,62092.0,62091.0,0.005818]
[1728661088884,0.04265532,62092.0,62091.0,0.005818]
[1728661089100,0.04265532,62092.0,62091.0,0.012818]
[1728661089326,0.00344365,62092.0,62091.0,0.012818]
[1728661089543,0.00344365,62092.0,62091.0,0.005818]
[1728661089544,0.04065598,62092.0,62091.0,0.005818]
[1728661089757,0.04065497,62092.0,62091.0,0.000818]
[1728661089977,0.04065541,62092.0,62091.0,0.161871]
[1728661090221,0.01652531,62092.0,62091.0,0.165871]
[1728661090453,0.01652531,62092.0,62091.0,0.171871]
[1728661091110,0.01652531,62092.0,62091.0,0.167871]
[1728661091324,0.01852531,62092.0,62091.0,0.167871]
[1728661091545,0.01652531,62092.0,62091.0,0.171871]
[1728661091994,0.01652531,62092.0,62091.0,0.165871]
[1728661092206,0.04265563,62092.0,62091.0,0.165871]
[1728661092423,0.06740196,62092.0,62091.0,0.010818]
[1728661092642,0.06740196,62092.0,62091.0,0.004818]
[1728661092870,0.04265824,62092.0,62091.0,0.004818]
[1728661093095,0.01652618,62092.0,62091.0,0.171871]
[1728661093531,0.04066041,62092.0,62091.0,0.167871]
[1728661093748,0.01652618,62092.0,62091.0,0.171871]
[1728661093960,0.04066064,62092.0,62091.0,0.171871]
[1728661094184,0.00144365,62092.0,62091.0,0.171871]
[1728661094402,0.06390104,62092.0,62091.0,0.010818]
[1728661094835,0.06590104,62092.0,62091.0,0.010818]
[1728661095524,0.06590065,62092.0,62091.0,0.010818]
[1728661095761,0.04176589,62092.0,62091.0,0.010818]
[1728661095970,0.04176589,62092.0,62091.0,0.004818]
[1728661096193,0.02668182,62092.0,62091.0,0.006818]
[1728661096461,0.04266236,62092.0,62091.0,0.006818]
[1728661096686,0.04266236,62092.0,62091.0,0.165871]
[1728661096906,0.0426625,62092.0,62091.0,0.006818]
[1728661097141,0.0426625,62092.0,62091.0,0.000818]
[1728661097369,0.0426625,62092.0,62091.0,0.001818]
[1728661097370,0.04266223,62092.0,62091.0,0.001818]
[1728661097798,0.04266223,62092.0,62091.0,0.162871]
[1728661098034,0.04266223,62092.0,62091.0,0.161871]
[1728661098288,0.04066223,62092.0,62091.0,0.164871]
[1728661098508,0.01652762,62092.0,62091.0,0.164871]
[1728661098733,0.04066129,62092.0,62091.0,0.003818]
[1728661098950,0.04066163,62092.0,62091.0,0.003818]
[1728661099172,0.04066163,62092.0,62091.0,0.169871]
[1728661099873,0.01652762,62092.0,62091.0,0.169871]
[1728661103194,0.00144365,62092.0,62091.0,0.169871]
[1728661103430,0.01652652,62092.0,62091.0,0.169871]
[1728661106457,0.01652598,62092.0,62091.0,0.169871]
[1728661109894,0.00144365,62092.0,62091.0,0.169871]
[1728661110109,0.01652849,62092.0,62091.0,0.169871]
[1728661110544,0.04066518,62092.0,62091.0,0.169871]
[1728661111907,0.01652849,62092.0,62091.0,0.169871]
[1728661113214,0.03864827,62099.0,62093.0,0.161048]
[1728661113429,0.03864827,62099.0,62091.0,0.008818]
[1728661113430,0.03864827,62099.0,62092.0,0.161051]
[1728661113638,0.03864827,62099.0,62093.0,0.161047]
[1728661113885,0.03864827,62099.0,62091.0,0.008818]
[1728661114099,0.16122401,62098.0,62091.0,0.008818]
[1728661114523,0.16122401,62098.0,62091.0,0.003818]
[1728661114935,0.48329901,62098.0,62091.0,0.003818]
[1728661115205,0.31726001,62098.0,62091.0,0.003818]
[1728661115397,0.31726001,62098.0,62091.0,0.000818]
[1728661115852,0.001636,62092.0,62091.0,0.000818]
[1728661117042,0.001636,62092.0,62091.0,0.002818]
[1728661117275,0.001636,62092.0,62091.0,0.004818]
[1728661120568,0.32391101,62092.0,62091.0,0.004818]
[1728661120785,0.64459561,62092.0,62091.0,0.004818]
[1728661121689,0.64459561,62092.0,62091.0,0.002818]
[1728661121896,0.64459561,62092.0,62091.0,0.000818]
[1728661122101,0.64559561,62092.0,62091.0,0.000818]
[1728661122528,0.56201101,62092.0,62091.0,0.000818]
[1728661125192,0.56201101,62092.0,62091.0,0.000818]
[1728661125398,0.57709154,62092.0,62091.0,0.000818]
[1728661127006,0.57708859,62092.0,62091.0,0.000818]
[1728661127474,1.02510741,62092.0,62091.0,0.000818]
[1728661127700,1.03626702,62092.0,62091.0,0.000818]
[1728661128451,1.1326887,62092.0,62091.0,0.000818]
[1728661128897,1.03626702,62092.0,62091.0,0.001818]
[1728661129322,1.15677063,62092.0,62091.0,0.001818]
[1728661129542,1.15577063,62092.0,62091.0,0.001818]
[1728661129780,1.16272268,62092.0,62091.0,0.002818]
[1728661130642,1.16271189,62092.0,62091.0,0.002818]
[1728661132448,1.04220714,62092.0,62091.0,0.002818]
[1728661134324,1.04209755,62092.0,62091.0,0.002818]
[1728661134612,1.35236534,62092.0,62091.0,0.002818]
[1728661134857,1.35236534,62092.0,62080.0,0.2424262]
[1728661134858,0.694828,62081.0,62080.0,0.2424262]
[1728661135113,0.87112959,62081.0,62080.0,0.2424262]
[1728661135351,0.87112959,62081.0,62079.0,0.000818]
[1728661135352,0.266082,62080.0,62079.0,0.000818]
[1728661135621,0.68128359,62080.0,62079.0,0.000818]
[1728661135903,1.13971199,62080.0,62079.0,0.000818]
[1728661136348,1.0434063,62080.0,62079.0,0.000818]
[1728661136575,1.0454063,62080.0,62079.0,0.000818]
[1728661137286,1.04536929,62080.0,62079.0,0.000818]
[1728661137507,0.93978977,62080.0,62079.0,0.000818]
[1728661137747,0.75542006,62080.0,62079.0,0.000818]
[1728661137970,0.68024658,62080.0,62079.0,0.000818]
[1728661138464,0.42434658,62080.0,62079.0,0.000818]
[1728661140546,0.18025917,62080.0,62079.0,0.000818]
[1728661141013,0.40268959,62080.0,62079.0,0.000818]
[1728661141229,0.40268959,62080.0,62079.0,0.01136056]
[1728661141447,0.40068959,62080.0,62079.0,0.000818]
[1728661141877,0.40268959,62080.0,62079.0,0.000818]
[1728661142338,0.40068959,62080.0,62079.0,0.000818]
[1728661142784,0.40268959,62080.0,62079.0,0.000818]
[1728661143002,0.47848959,62080.0,62079.0,0.000818]
[1728661146189,0.46345443,62080.0,62079.0,0.000818]
[1728661146387,0.4784996,62080.0,62079.0,0.000818]
[1728661149351,0.41215118,62080.0,62079.0,0.000818]
[1728661149553,0.39710601,62080.0,62079.0,0.000818]
[1728661149770,0.41216028,62080.0,62079.0,0.000818]
[1728661151289,0.33636028,62080.0,62079.0,0.000818]
[1728661154162,0.32130601,62080.0,62079.0,0.000818]
[1728661154378,0.48467143,62080.0,62079.0,0.000818]
[1728661159677,0.90414614,62080.0,62079.0,0.000818]
[1728661159935,0.9281835,62080.0,62079.0,0.000818]
[1728661160097,0.161103,62072.0,62071.0,0.00092085]
[1728661160317,0.60831513,62072.0,62071.0,0.0115753]
[1728661160555,0.60831478,62072.0,62071.0,0.0115753]
[1728661160756,0.60831478,62072.0,62071.0,0.00092085]
[1728661163123,0.44721178,62072.0,62065.0,0.23834705]
[1728661163338,0.161118,62066.0,62065.0,0.23834705]
[1728661163545,0.322248,62064.0,62058.0,0.2424262]
[1728661163754,0.161132,62061.0,62058.0,0.2424262]
[1728661163965,0.01508603,62060.0,62058.0,0.2424262]
[1728661164274,0.01508603,62059.0,62056.0,0.0251991]
[1728661164511,0.01508603,62058.0,62056.0,0.0251991]
[1728661165987,0.01508603,62058.0,62057.0,0.0858]
[1728661166465,0.01508603,62058.0,62057.0,0.003]
[1728661167208,0.01508603,62058.0,62057.0,0.007]
[1728661167209,0.20996913,62058.0,62057.0,0.007]
[1728661167438,0.04883013,62058.0,62057.0,0.007]
[1728661167709,0.21005414,62058.0,62057.0,0.007]
[1728661167977,0.56104214,62058.0,62057.0,0.007]
[1728661168231,0.56104214,62058.0,62057.0,0.004]
[1728661168232,0.64164214,62058.0,62057.0,0.004]
[1728661168472,0.64164214,62058.0,62057.0,0.006]
[1728661168997,0.64164214,62058.0,62045.0,0.2424262]
[1728661168998,0.48050314,62058.0,62045.0,0.2424262]
[1728661169251,0.161162,62049.0,62045.0,0.2424262]
[1728661169498,0.33747204,62049.0,62045.0,0.2424262]
[1728661170495,0.33747204,62049.0,62048.0,0.001819]
[1728661171011,0.33744729,62049.0,62048.0,0.001819]
[1728661171540,0.46788602,62049.0,62048.0,0.001819]
[1728661171797,0.69588602,62049.0,62048.0,0.001819]
[1728661172280,0.71996782,62049.0,62048.0,0.001819]
[1728661172760,0.71996782,62049.0,62048.0,0.000819]
[1728661173004,0.71996782,62049.0,62048.0,0.001819]
[1728661173239,0.72796782,62049.0,62048.0,0.001819]
[1728661173710,0.75304394,62049.0,62048.0,0.001819]
[1728661173936,0.76104394,62049.0,62048.0,0.002819]
[1728661174433,0.69682474,62049.0,62048.0,0.002819]
[1728661174661,0.76099938,62049.0,62048.0,0.002819]
[1728661175076,0.73593116,62049.0,62048.0,0.002819]
[1728661175238,0.76099366,62049.0,62048.0,0.002819]
[1728661177387,0.73593116,62049.0,62048.0,0.002819]
[1728661178142,0.73590491,62049.0,62048.0,0.002819]
[1728661178957,0.7609563,62049.0,62048.0,0.002819]
[1728661179168,0.73590491,62049.0,62048.0,0.002819]
[1728661179583,0.7609563,62049.0,62048.0,0.002819]
[1728661179776,0.8609563,62049.0,62048.0,0.002819]
[1728661179983,0.84090491,62049.0,62048.0,0.002819]
[1728661180998,0.86390491,62049.0,62048.0,0.002819]
[1728661183135,0.91199787,62049.0,62048.0,0.002819]
[1728661183352,0.86390491,62049.0,62048.0,0.002819]
[1728661183780,0.91199787,62049.0,62048.0,0.002819]
[1728661184002,0.90399787,62049.0,62048.0,0.001819]
[1728661184166,0.85590491,62049.0,62048.0,0.001819]
[1728661184363,0.86990491,62049.0,62048.0,0.002819]
[1728661185452,0.86190491,62049.0,62048.0,0.001819]
[1728661185869,0.87590491,62049.0,62048.0,0.001819]
[1728661187565,0.59856618,62049.0,62048.0,0.001819]
[1728661188721,0.58456618,62049.0,62048.0,0.001819]
[1728661188930,0.59756618,62049.0,62048.0,0.001819]
[1728661189141,0.55848601,62049.0,62048.0,0.001819]
[1728661189350,0.59758224,62049.0,62048.0,0.001819]
[1728661189532,0.75895195,62049.0,62048.0,0.001819]
[1728661189777,0.50248224,62049.0,62048.0,0.000819]
[1728661189994,0.47948224,62049.0,62048.0,0.000819]
[1728661190218,0.49248224,62049.0,62048.0,0.000819]
[1728661195551,0.4922769,62049.0,62048.0,0.000819]
[1728661195780,0.65364661,62049.0,62048.0,0.000819]
[1728661196226,0.55364661,62049.0,62048.0,0.000819]
[1728661196454,0.65364661,62049.0,62048.0,0.000819]
[1728661196675,0.3872769,62049.0,62048.0,0.000819]
[1728661196890,0.34818067,62049.0,62048.0,0.000819]
[1728661197140,0.38737081,62049.0,62048.0,0.01200393]
[1728661197354,0.38737081,62049.0,62048.0,0.000819]
[1728661197596,0.37437081,62049.0,62048.0,0.000819]
[1728661197809,0.37937081,62049.0,62048.0,0.000819]
[1728661198507,0.50100089,62049.0,62048.0,0.000819]
[1728661198942,0.50500089,62049.0,62048.0,0.000819]
[1728661199169,0.50000089,62049.0,62048.0,0.000819]
[1728661199385,0.37041958,62049.0,62048.0,0.000819]
[1728661199635,0.36641958,62049.0,62048.0,0.000819]
[1728661199853,0.36141958,62049.0,62048.0,0.000819]
[1728661200305,0.36742494,62049.0,62048.0,0.000819]